bitfinex/quotes_BTCUSD_20240819
["timestamp","ask_amount","ask_price","bid_price","bid_amount"]
[1724106818154,0.001822,59212.0,59211.0,3.41384373]
[1724106818554,0.001822,59212.0,59211.0,3.49674373]
[1724106819157,0.001822,59212.0,59211.0,3.49715063]
[1724106820166,0.001822,59212.0,59211.0,3.83551873]
[1724106820403,0.001822,59212.0,59211.0,3.94294818]
[1724106820688,0.001822,59212.0,59211.0,4.28802305]
[1724106820861,0.001822,59212.0,59211.0,4.31333433]
[1724106821461,0.001822,59212.0,59211.0,4.18677794]
[1724106821788,0.000822,59212.0,59211.0,4.17250621]
[1724106822286,0.001822,59212.0,59211.0,4.31206858]
[1724106822662,0.000822,59212.0,59211.0,4.29506858]
[1724106824199,0.000822,59212.0,59211.0,4.30906858]
[1724106824531,0.000822,59212.0,59211.0,4.17050621]
[1724106824731,0.000822,59212.0,59211.0,4.18250621]
[1724106824959,0.000822,59212.0,59211.0,4.30906858]
[1724106825161,0.000822,59212.0,59211.0,4.18250621]
[1724106825395,0.000822,59212.0,59211.0,4.18650621]
[1724106825563,0.000822,59212.0,59211.0,4.18250621]
[1724106826173,0.000822,59212.0,59211.0,3.71185432]
[1724106826408,0.000822,59212.0,59211.0,3.41825063]
[1724106827382,0.000822,59212.0,59211.0,3.32245063]
[1724106827613,0.000822,59212.0,59211.0,3.41725063]
[1724106828848,0.000822,59212.0,59211.0,3.41825063]
[1724106829867,0.000822,59212.0,59211.0,3.46886898]
[1724106830001,0.000822,59212.0,59211.0,3.41825063]
[1724106830201,0.000822,59212.0,59211.0,3.46886898]
[1724106830627,0.000822,59212.0,59211.0,3.8449407]
[1724106831063,0.000822,59212.0,59211.0,3.94617741]
[1724106831465,0.000822,59212.0,59211.0,3.94449552]
[1724106832097,0.000822,59212.0,59211.0,3.63058884]
[1724106832590,0.000822,59212.0,59211.0,3.60527521]
[1724106833576,0.000822,59212.0,59211.0,3.55465063]
[1724106834212,0.000822,59212.0,59211.0,3.6052738]
[1724106834543,0.000822,59212.0,59211.0,3.5488738]
[1724106834739,0.000822,59212.0,59211.0,3.5478738]
[1724106835592,0.000822,59212.0,59211.0,3.4530738]
[1724106835815,0.000822,59212.0,59211.0,3.41625063]
[1724106835946,0.000822,59212.0,59211.0,3.33545063]
[1724106836149,0.000822,59212.0,59211.0,3.43025063]
[1724106836733,0.000822,59212.0,59211.0,3.41625063]
[1724106836944,0.000822,59212.0,59211.0,3.41725063]
[1724106837152,0.000822,59212.0,59211.0,3.43084373]
[1724106837352,0.000822,59212.0,59211.0,3.41725063]
[1724106837560,0.000822,59212.0,59211.0,3.40325063]
[1724106837852,0.000822,59212.0,59211.0,3.43025063]
[1724106840057,0.000822,59212.0,59211.0,1.83445063]
[1724106840263,0.000822,59212.0,59211.0,1.82925063]
[1724106840433,0.138822,59212.0,59211.0,3.32925063]
[1724106840673,0.138822,59212.0,59211.0,3.33025063]
[1724106840674,0.062822,59212.0,59211.0,3.33025063]
[1724106841606,0.062822,59212.0,59211.0,3.43025063]
[1724106844395,0.062822,59212.0,59211.0,3.42925063]
[1724106845638,0.062822,59212.0,59211.0,3.43025063]
[1724106848070,0.062822,59212.0,59211.0,3.42350661]
[1724106848516,0.062822,59212.0,59211.0,3.42599759]
[1724106850720,0.144022,59212.0,59211.0,3.15884882]
[1724106850943,0.144022,59212.0,59211.0,3.25364882]
[1724106851899,0.144022,59212.0,59211.0,2.82107382]
[1724106852099,0.144022,59212.0,59211.0,2.91587382]
[1724106852674,0.144022,59212.0,59211.0,2.90287382]
[1724106852876,0.144022,59212.0,59211.0,2.91087382]
[1724106853098,0.144022,59212.0,59211.0,2.89687382]
[1724106853315,0.144022,59212.0,59211.0,2.90687382]
[1724106853567,0.144022,59212.0,59211.0,2.88887382]
[1724106853799,0.144022,59212.0,59211.0,2.89887382]
[1724106855960,0.144022,59212.0,59211.0,1.39887382]
[1724106856593,0.144022,59212.0,59211.0,2.89887382]
[1724106857170,0.144022,59212.0,59211.0,2.89977802]
[1724106859609,0.144022,59212.0,59211.0,1.39977802]
[1724106860023,0.144022,59212.0,59211.0,1.06200302]
[1724106860829,0.144022,59212.0,59211.0,1.05800302]
[1724106861055,0.144022,59212.0,59211.0,1.05200302]
[1724106861399,0.144022,59212.0,59211.0,1.05600302]
[1724106862095,0.144022,59212.0,59211.0,1.05900302]
[1724106862709,0.144022,59212.0,59211.0,1.05600302]
[1724106862930,0.144022,59212.0,59211.0,1.05800302]
[1724106872811,0.144022,59212.0,59211.0,2.55800302]
[1724106873466,0.144022,59212.0,59211.0,1.05800302]
[1724106874112,0.144022,59212.0,59211.0,0.61982112]
[1724106874489,0.144022,59212.0,59211.0,0.95759612]
[1724106874698,0.144022,59212.0,59211.0,0.86279612]
[1724106874945,0.144022,59212.0,59211.0,0.86320302]
[1724106877954,0.144022,59212.0,59211.0,0.52542802]
[1724106878374,0.144022,59212.0,59211.0,0.86320302]
[1724106881072,0.144022,59212.0,59211.0,0.86279612]
[1724106881476,0.144022,59212.0,59211.0,0.95759612]
[1724106882589,0.144022,59212.0,59211.0,0.95800302]
[1724106883476,0.144022,59212.0,59211.0,0.95759612]
[1724106884109,0.144022,59212.0,59211.0,0.95800302]
[1724106884285,0.144022,59212.0,59211.0,0.95759612]
[1724106887789,0.144022,59212.0,59211.0,0.95800302]
[1724106888416,0.144022,59212.0,59211.0,0.95759612]
[1724106889192,0.144022,59212.0,59211.0,0.95800302]
[1724106889549,0.144022,59212.0,59211.0,0.95759612]
[1724106891161,0.144022,59212.0,59211.0,2.45759612]
[1724106891617,0.000822,59212.0,59211.0,1.37847802]
[1724106891803,0.000822,59212.0,59211.0,1.47847802]
[1724106891966,0.000822,59212.0,59211.0,3.31625302]
[1724106892167,0.000822,59212.0,59211.0,3.31584612]
[1724106892802,0.000822,59212.0,59211.0,2.97807112]
[1724106893161,0.000822,59212.0,59211.0,2.97847802]
[1724106893355,0.000822,59212.0,59211.0,2.97807112]
[1724106893808,0.000822,59212.0,59211.0,3.31625302]
[1724106894030,0.000822,59212.0,59211.0,2.97807112]
[1724106896300,0.000822,59212.0,59211.0,3.1599527]
[1724106896507,0.000822,59212.0,59211.0,3.1595458]
[1724106896711,0.000822,59212.0,59211.0,3.4973208]
[1724106899312,0.000822,59212.0,59211.0,3.4977277]
[1724106899747,0.000822,59212.0,59211.0,3.49526952]
[1724106899924,0.000822,59212.0,59211.0,3.49486262]
[1724106900583,0.000822,59212.0,59211.0,3.55266952]
[1724106900788,0.000822,59212.0,59211.0,3.92006357]
[1724106900990,0.000822,59212.0,59211.0,3.97070604]
[1724106901240,0.000822,59212.0,59211.0,4.30848104]
[1724106901443,0.000822,59212.0,59211.0,4.28108146]
[1724106901651,0.000822,59212.0,59211.0,4.28308146]
[1724106901863,0.000822,59212.0,59211.0,4.28508146]
[1724106902275,0.000822,59212.0,59211.0,4.28308146]
[1724106902482,0.000822,59212.0,59211.0,4.17787487]
[1724106902701,0.000822,59212.0,59211.0,4.19287487]
[1724106902929,0.000822,59212.0,59211.0,4.19328024]
[1724106903138,0.000822,59212.0,59211.0,4.20728024]
[1724106903338,0.000822,59212.0,59211.0,3.96402877]
[1724106904246,0.000822,59212.0,59211.0,3.96602753]
[1724106905191,0.000822,59212.0,59211.0,3.91144452]
[1724106905391,0.000822,59212.0,59211.0,3.91344452]
[1724106905585,0.000822,59212.0,59211.0,3.91544452]
[1724106908231,0.000822,59212.0,59211.0,3.91144452]
[1724106909043,0.000822,59212.0,59211.0,3.91344452]
[1724106909527,0.000822,59212.0,59211.0,3.91544452]
[1724106909844,0.000822,59212.0,59211.0,3.91144452]
[1724106911706,0.000822,59212.0,59211.0,3.85504452]
[1724106912702,0.000822,59212.0,59211.0,3.85704452]
[1724106915327,0.000822,59212.0,59211.0,3.85904452]
[1724106915729,0.000822,59212.0,59211.0,3.86726452]
[1724106918145,0.000822,59212.0,59211.0,3.86285762]
[1724106918328,0.000822,59212.0,59211.0,3.86726452]
[1724106924237,0.000822,59212.0,59211.0,3.86326452]
[1724106927018,0.000822,59212.0,59211.0,3.86526452]
[1724106927202,0.000822,59212.0,59211.0,3.86326452]
[1724106927376,0.000822,59212.0,59211.0,3.86526452]
[1724106929388,0.000822,59212.0,59211.0,3.86326452]
[1724106930721,0.063222,59212.0,59211.0,3.34698952]
[1724106930920,0.063222,59212.0,59211.0,1.94178952]
[1724106931269,0.142922,59212.0,59211.0,1.84178952]
[1724106931678,0.142922,59212.0,59211.0,1.83356952]
[1724106932505,0.142922,59212.0,59211.0,1.41431984]
[1724106932714,0.14241294,59212.0,59211.0,1.41431984]
[1724106933135,0.14241294,59212.0,59211.0,1.31431984]
[1724106934507,0.14241294,59212.0,59211.0,1.41431984]
[1724106936921,0.14241294,59212.0,59211.0,1.40031984]
[1724106937153,0.14241294,59212.0,59211.0,1.39431984]
[1724106937303,0.14241294,59212.0,59211.0,1.40031984]
[1724106937912,0.14241294,59212.0,59211.0,1.38731984]
[1724106938359,0.14241294,59212.0,59211.0,1.39231984]
[1724106938759,0.14241294,59212.0,59211.0,1.39631984]
[1724106939323,0.14241294,59212.0,59211.0,2.89631984]
[1724106939460,0.14241294,59212.0,59211.0,2.89131984]
[1724106939815,0.14241294,59212.0,59211.0,2.89531984]
[1724106940163,0.14241294,59212.0,59211.0,2.89131984]
[1724106940715,0.14241294,59212.0,59211.0,2.89331984]
[1724106940932,0.14241294,59212.0,59211.0,2.79851984]
[1724106941132,0.14241294,59212.0,59211.0,2.89331984]
[1724106941334,0.14241294,59212.0,59211.0,1.05554484]
[1724106941690,0.14241294,59212.0,59211.0,0.96074484]
[1724106941912,0.14241294,59212.0,59211.0,1.05554484]
[1724106942895,0.14241294,59212.0,59211.0,1.05513794]
[1724106943299,0.14241294,59212.0,59211.0,1.39331984]
[1724106946103,0.14241294,59212.0,59211.0,2.89331984]
[1724106946317,0.14241294,59212.0,59211.0,2.89582419]
[1724106946471,0.06271294,59212.0,59211.0,3.06717296]
[1724106947303,0.06271294,59212.0,59211.0,3.41523682]
[1724106947509,0.06271294,59212.0,59211.0,3.07746182]
[1724106947674,0.06271294,59212.0,59211.0,3.41523682]
[1724106947875,0.06271294,59212.0,59211.0,3.06717296]
[1724106948281,0.06271294,59212.0,59211.0,3.40494796]
[1724106948930,0.06271294,59212.0,59211.0,3.06717296]
[1724106949365,0.00031294,59212.0,59211.0,3.14797296]
[1724106949561,0.00031294,59212.0,59211.0,3.48574796]
[1724106949766,0.00031294,59212.0,59211.0,3.48674796]
[1724106949969,0.00031294,59212.0,59211.0,3.82352296]
[1724106950111,0.00031294,59212.0,59211.0,3.48574796]
[1724106950310,0.00031294,59212.0,59211.0,3.48374796]
[1724106950515,0.00031294,59212.0,59211.0,3.49274796]
[1724106950945,0.00031294,59212.0,59211.0,3.50674796]
[1724106951117,0.06341294,59212.0,59211.0,3.42594796]
[1724106955961,0.00031294,59212.0,59211.0,3.50564796]
[1724106956363,0.00031294,59212.0,59211.0,3.50524106]
[1724106956564,0.00031294,59212.0,59211.0,3.50564796]
[1724106956820,0.00031294,59212.0,59211.0,3.84442296]
[1724106957903,0.00031294,59212.0,59211.0,3.84642296]
[1724106958283,0.00031294,59212.0,59211.0,3.84442296]
[1724106959959,0.00031294,59212.0,59211.0,3.84642296]
[1724106960357,0.00031294,59212.0,59211.0,3.84842296]
[1724106960574,0.00031294,59212.0,59211.0,3.90482296]
[1724106960827,0.00031294,59212.0,59211.0,3.9807079]
[1724106961048,0.00031294,59212.0,59211.0,4.27500678]
[1724106961249,0.00031294,59212.0,59211.0,4.30030848]
[1724106961452,0.00031294,59212.0,59211.0,4.29847798]
[1724106962292,0.00031294,59212.0,59211.0,4.29447798]
[1724106962518,0.00031294,59212.0,59211.0,4.2691839]
[1724106962719,0.00031294,59212.0,59211.0,3.97668848]
[1724106962920,0.00031294,59212.0,59211.0,3.90082296]
[1724106963159,0.00031294,59212.0,59211.0,3.95140042]
[1724106965899,0.00031294,59212.0,59211.0,3.95540042]
[1724106966102,0.00031294,59212.0,59211.0,3.95098612]
[1724106966232,0.00031294,59212.0,59211.0,3.95539302]
[1724106966431,0.00031294,59212.0,59211.0,3.90482296]
[1724106969253,0.00031294,59212.0,59211.0,3.95537363]
[1724106970286,0.00031294,59212.0,59211.0,3.90482296]
[1724106970495,0.00031294,59212.0,59211.0,4.24259796]
[1724106970727,0.000822,59215.0,59214.0,1.8630699]
[1724106970911,0.000822,59215.0,59214.0,2.20581867]
[1724106971162,1e-06,59215.0,59214.0,2.65603867]
[1724106971384,1e-06,59215.0,59214.0,4.15603867]
[1724106971516,0.00822,59220.0,59219.0,2.196238]
[1724106971713,0.00822,59220.0,59219.0,2.69979367]
[1724106971923,0.00822,59220.0,59219.0,2.63939367]
[1724106972329,0.00822,59220.0,59219.0,4.13939367]
[1724106972578,0.00822,59220.0,59219.0,4.14339367]
[1724106973512,0.00822,59220.0,59219.0,4.15339367]
[1724106974260,0.00822,59220.0,59219.0,4.16439367]
[1724106974668,0.00822,59220.0,59219.0,4.08779367]
[1724106974876,0.00822,59220.0,59219.0,4.10022829]
[1724106975630,0.00822,59220.0,59219.0,4.09922829]
[1724106975801,0.00822,59220.0,59219.0,3.76149929]
[1724106976448,0.00822,59220.0,59219.0,3.77170938]
[1724106977461,0.00822,59220.0,59219.0,3.77270938]
[1724106980906,0.00822,59220.0,59219.0,3.77470938]
[1724106981446,0.00822,59220.0,59219.0,3.77670938]
[1724106981581,0.00822,59220.0,59219.0,3.77270938]
[1724106982219,0.00822,59220.0,59219.0,3.83390938]
[1724106987011,0.00822,59220.0,59219.0,3.83590938]
[1724106989459,0.00822,59220.0,59219.0,3.83790938]
[1724106991463,0.00822,59220.0,59219.0,3.888419]
[1724106991662,0.00822,59220.0,59219.0,3.83790938]
[1724106992013,0.00822,59220.0,59219.0,3.888419]
[1724106992156,0.00822,59220.0,59219.0,3.83790938]
[1724106995408,0.00822,59220.0,59219.0,3.88844293]
[1724106995814,0.00822,59220.0,59219.0,3.83790938]
[1724106996193,0.00822,59220.0,59219.0,4.21902022]
[1724106996429,0.07022,59229.0,59227.0,1.8586629]
[1724106996646,0.0002,59239.0,59233.0,0.3380559]
[1724106996647,0.062,59236.0,59233.0,0.3380559]
[1724106996854,0.062,59236.0,59233.0,1.44832667]
[1724106997055,0.062,59236.0,59233.0,1.88556877]
[1724106997264,0.062,59236.0,59233.0,3.38556877]
[1724106997486,0.062,59236.0,59233.0,3.38697567]
[1724106998051,0.062,59236.0,59233.0,3.74743026]
[1724106999024,0.062,59236.0,59233.0,3.75783716]
[1724106999435,0.062,59236.0,59233.0,3.75983716]
[1724106999641,0.062,59236.0,59233.0,3.76183716]
[1724107000452,0.062,59236.0,59233.0,3.7744878]
[1724107001508,0.062,59236.0,59233.0,3.7724878]
[1724107001864,0.062,59236.0,59233.0,3.7744878]
[1724107002907,0.062,59236.0,59233.0,3.8538878]
[1724107003333,0.0002,59239.0,59233.0,3.8538878]
[1724107003334,0.0002,59239.0,59238.0,1.8583219]
[1724107003544,0.00821,59242.0,59241.0,0.507406]
[1724107003739,0.00821,59245.0,59244.0,1.181551]
[1724107003949,0.00821,59245.0,59244.0,1.88569267]
[1724107004097,0.00821,59245.0,59244.0,3.73588791]
[1724107005303,0.00821,59245.0,59244.0,3.74788791]
[1724107005484,0.00821,59245.0,59244.0,3.74888791]
[1724107005620,0.00821,59245.0,59244.0,3.74788791]
[1724107006565,0.00821,59245.0,59244.0,3.75784961]
[1724107006980,0.00821,59245.0,59244.0,3.77184961]
[1724107007186,0.00821,59245.0,59244.0,3.76084961]
[1724107007622,0.00821,59245.0,59244.0,3.77484961]
[1724107014929,0.00821,59245.0,59244.0,3.34146361]
[1724107015153,0.15351,59245.0,59244.0,1.22256714]
[1724107015360,0.15351,59245.0,59244.0,1.31736714]
[1724107015981,0.15351,59245.0,59244.0,1.30336714]
[1724107016386,0.15351,59245.0,59244.0,1.28936714]
[1724107016604,0.15351,59245.0,59244.0,0.96278114]
[1724107017026,0.15351,59245.0,59244.0,0.52998824]
[1724107017244,0.15351,59245.0,59244.0,0.19240224]
[1724107017469,0.15351,59245.0,59244.0,0.20040224]
[1724107017667,0.15351,59245.0,59244.0,0.53798824]
[1724107017870,0.15351,59245.0,59244.0,0.87557424]
[1724107018080,0.15351,59245.0,59244.0,0.20040224]
[1724107018289,0.15351,59245.0,59244.0,0.53839514]
[1724107018482,0.15351,59245.0,59244.0,0.53039514]
[1724107020064,0.15351,59245.0,59244.0,0.85698114]
[1724107021573,0.15351,59245.0,59244.0,1.19456714]
[1724107021970,0.15351,59245.0,59244.0,2.69456714]
[1724107022687,0.15351,59245.0,59244.0,2.78936714]
[1724107023095,0.15351,59245.0,59244.0,1.28936714]
[1724107023268,0.15351,59245.0,59244.0,1.29036714]
[1724107029559,0.09011,59245.0,59244.0,1.46171591]
[1724107029698,0.00821,59245.0,59244.0,1.46171591]
[1724107030099,0.00821,59245.0,59244.0,2.96171591]
[1724107030686,0.00821,59245.0,59244.0,2.96071591]
[1724107031019,0.00821,59245.0,59244.0,1.46471591]
[1724107031224,0.00821,59245.0,59244.0,1.46671591]
[1724107031447,0.00821,59245.0,59244.0,1.80430191]
[1724107031857,0.00821,59245.0,59244.0,1.98050191]
[1724107032621,0.00821,59245.0,59244.0,1.90430191]
[1724107033699,0.15231,59245.0,59244.0,1.30056714]
[1724107033940,0.15231,59245.0,59244.0,1.39536714]
[1724107042811,0.15231,59245.0,59244.0,2.89536714]
[1724107045811,0.15231,59245.0,59244.0,1.39536714]
[1724107046198,0.15231,59245.0,59244.0,2.89536714]
[1724107046755,0.15231,59245.0,59244.0,0.01860924]
[1724107046961,0.1894197,59245.0,59244.0,0.18740224]
[1724107047187,0.15231,59245.0,59244.0,0.01860924]
[1724107047383,0.15231,59245.0,59244.0,0.18740224]
[1724107048102,0.15231,59245.0,59244.0,0.52498824]
[1724107050485,0.15231,59245.0,59244.0,0.61978824]
[1724107052222,0.15231,59245.0,59244.0,0.95737424]
[1724107052475,0.06911,59245.0,59244.0,1.29496024]
[1724107053220,0.00821,59245.0,59244.0,1.46671591]
[1724107053494,0.00821,59245.0,59244.0,1.88590191]
[1724107053724,0.00821,59245.0,59244.0,1.46671591]
[1724107053960,0.07381,59245.0,59244.0,1.29536714]
[1724107054422,0.15451,59245.0,59244.0,1.29536714]
[1724107054652,0.15451,59245.0,59244.0,0.95778114]
[1724107055626,0.07381,59245.0,59244.0,1.29536714]
[1724107057168,0.00821,59245.0,59244.0,1.29536714]
[1724107057403,0.00821,59245.0,59244.0,1.64241591]
[1724107057613,0.00821,59245.0,59244.0,1.98000191]
[1724107058202,0.00821,59245.0,59244.0,3.48000191]
[1724107059710,0.00821,59245.0,59244.0,1.30056714]
[1724107059711,0.14801,59245.0,59244.0,1.30056714]
[1724107059953,0.14801,59245.0,59244.0,1.39536714]
[1724107060594,0.00821,59245.0,59244.0,1.56671591]
[1724107062419,0.00821,59245.0,59244.0,1.90430191]
[1724107063641,0.00821,59245.0,59244.0,3.40430191]
[1724107063844,0.00821,59245.0,59244.0,3.06671591]
[1724107064985,0.00821,59245.0,59244.0,1.39536714]
[1724107065198,0.14801,59245.0,59244.0,1.05737424]
[1724107065400,0.14801,59245.0,59244.0,1.05778114]
[1724107066290,0.14801,59245.0,59244.0,1.39536714]
[1724107066444,0.07091,59245.0,59244.0,1.56671591]
[1724107066836,0.07091,59245.0,59244.0,1.64241591]
[1724107066837,0.00821,59245.0,59244.0,1.64241591]
[1724107067070,0.00821,59245.0,59244.0,1.98000191]
[1724107068298,0.00821,59245.0,59244.0,3.48000191]
[1724107068720,0.00821,59245.0,59244.0,1.30056714]
[1724107068925,0.14801,59245.0,59244.0,1.39536714]
[1724107069761,0.14801,59245.0,59244.0,0.01860924]
[1724107069969,0.14801,59245.0,59244.0,0.52498824]
[1724107071598,0.14801,59245.0,59244.0,0.52539514]
[1724107072439,0.14801,59245.0,59244.0,0.52498824]
[1724107072639,0.3168,59245.0,59244.0,0.01860924]
[1724107072857,0.654381,59245.0,59244.0,0.01860924]
[1724107073084,0.70497034,59245.0,59244.0,0.006]
[1724107073342,0.654381,59245.0,59244.0,0.006]
[1724107073965,0.69146304,59245.0,59244.0,0.006]
[1724107074165,0.14801,59245.0,59242.0,0.00131]
[1724107074381,0.14801,59245.0,59244.0,0.168793]
[1724107074608,0.05878384,59245.0,59243.0,0.01285343]
[1724107074820,0.168796,59243.0,59242.0,0.0009031]
[1724107075036,1.06012925,59243.0,59242.0,0.0009031]
[1724107075239,1.01837961,59243.0,59242.0,0.0009031]
[1724107075446,1.2692009,59243.0,59242.0,0.0009031]
[1724107075655,1.26916126,59243.0,59242.0,0.0009031]
[1724107076263,1.26916126,59243.0,59242.0,0.0019031]
[1724107076466,1.14279241,59243.0,59242.0,0.0019031]
[1724107077418,1.2438458,59243.0,59242.0,0.0019031]
[1724107079490,1.2438458,59243.0,59242.0,0.1707021]
[1724107079491,0.21607886,59243.0,59242.0,0.1707021]
[1724107079706,0.21607886,59243.0,59242.0,0.5083001]
[1724107079707,0.1403,59243.0,59242.0,0.5083001]
[1724107080167,0.1403,59243.0,59242.0,2.3587851]
[1724107080373,0.1403,59243.0,59242.0,0.8587851]
[1724107080579,0.1403,59243.0,59242.0,0.5211871]
[1724107081280,0.1403,59243.0,59242.0,0.5201871]
[1724107081484,0.1403,59243.0,59242.0,0.520594]
[1724107081852,0.1403,59243.0,59242.0,0.8577851]
[1724107082032,0.1403,59243.0,59242.0,0.0137901]
[1724107082033,0.309096,59243.0,59242.0,0.0137901]
[1724107082466,0.1403,59243.0,59242.0,0.0009031]
[1724107083742,0.1403,59243.0,59242.0,0.1697021]
[1724107083952,0.1403,59243.0,59242.0,0.5073001]
[1724107084161,0.0623,59243.0,59242.0,0.8448981]
[1724107084569,0.0623,59243.0,59242.0,0.845305]
[1724107084774,0.00821,59245.0,59244.0,0.843965]
[1724107084981,0.00821,59245.0,59244.0,1.1819579]
[1724107086251,0.00821,59245.0,59244.0,1.2573579]
[1724107086871,0.00821,59245.0,59244.0,1.1819579]
[1724107087453,0.00821,59245.0,59244.0,1.182551]
[1724107087886,0.00821,59245.0,59244.0,1.181551]
[1724107088090,0.00821,59245.0,59244.0,1.184551]
[1724107088218,0.00821,59245.0,59244.0,1.185551]
[1724107089441,0.00821,59245.0,59244.0,1.1859579]
[1724107092222,0.00821,59245.0,59244.0,1.6012439]
[1724107092461,0.00821,59245.0,59244.0,1.7012439]
[1724107093283,0.00821,59245.0,59244.0,1.87259267]
[1724107093627,0.00821,59245.0,59244.0,1.86959267]
[1724107093830,0.00821,59245.0,59244.0,1.86859267]
[1724107094223,0.00821,59245.0,59244.0,1.87059267]
[1724107094418,0.00821,59245.0,59244.0,1.87459267]
[1724107095529,0.00821,59245.0,59244.0,1.87759267]
[1724107095739,0.00821,59245.0,59244.0,3.37759267]
[1724107095944,0.00821,59245.0,59244.0,3.71717867]
[1724107096143,0.00821,59245.0,59244.0,3.77945452]
[1724107096905,0.00821,59245.0,59244.0,3.77345452]
[1724107097115,0.00821,59245.0,59244.0,3.79645452]
[1724107097279,0.00821,59245.0,59244.0,3.79545452]
[1724107097516,0.00821,59245.0,59244.0,3.78545452]
[1724107097932,0.00821,59245.0,59244.0,3.78645452]
[1724107098147,0.00821,59245.0,59244.0,3.80045452]
[1724107098365,0.00821,59245.0,59244.0,3.45199267]
[1724107099991,0.00821,59245.0,59244.0,3.39559267]
[1724107102844,0.00821,59245.0,59244.0,3.73817867]
[1724107103054,0.00821,59245.0,59244.0,3.73417867]
[1724107103679,0.00821,59245.0,59244.0,4.13016467]
[1724107103885,0.00821,59258.0,59257.0,0.8803749]
[1724107104092,0.00821,59258.0,59257.0,1.82674767]
[1724107104528,0.00821,59258.0,59257.0,3.66425967]
[1724107106195,0.00821,59258.0,59257.0,3.60785967]
[1724107106605,0.00821,59258.0,59257.0,3.62885967]
[1724107107430,0.06901,59258.0,59257.0,2.04825967]
[1724107107611,0.00821,59258.0,59257.0,2.04825967]
[1724107107827,0.00821,59258.0,59257.0,3.54825967]
[1724107108030,0.00821,59258.0,59257.0,3.62555967]
[1724107108438,0.00821,59258.0,59257.0,2.12555967]
[1724107109057,0.00821,59258.0,59257.0,3.62555967]
[1724107109640,0.00821,59258.0,59257.0,2.12555967]
[1724107110097,0.00821,59258.0,59257.0,3.62555967]
[1724107111215,0.00821,59258.0,59257.0,3.54825967]
[1724107111350,0.15221,59258.0,59257.0,3.54825967]
[1724107112318,0.15221,59258.0,59257.0,2.04825967]
[1724107113444,0.07051,59258.0,59257.0,2.04825967]
[1724107118540,0.00821,59258.0,59257.0,2.12535967]
[1724107121951,0.15561,59258.0,59257.0,1.3026989]
[1724107125975,0.15561,59258.0,59257.0,2.8026989]
[1724107126437,0.15561,59258.0,59257.0,0.627268]
[1724107126672,0.15561,59258.0,59257.0,0.189756]
[1724107126887,0.15561,59258.0,59257.0,0.527268]
[1724107127305,0.15561,59258.0,59257.0,0.86478]
[1724107127522,0.15561,59258.0,59257.0,0.85278]
[1724107127779,0.15561,59258.0,59257.0,0.85378]
[1724107127998,0.15561,59258.0,59257.0,0.84478]
[1724107129031,0.15561,59258.0,59257.0,0.8451869]
[1724107129245,0.15561,59258.0,59257.0,0.8441869]
[1724107129460,0.15661,59258.0,59257.0,0.8441869]
[1724107129660,0.15561,59258.0,59257.0,0.8441869]
[1724107130123,0.15761,59258.0,59257.0,0.8441869]
[1724107130379,0.15861,59258.0,59257.0,0.8441869]
[1724107130664,0.15861,59258.0,59257.0,1.58974767]
[1724107130665,0.01121,59258.0,59257.0,1.58974767]
[1724107130885,0.01121,59258.0,59257.0,2.10435967]
[1724107131093,0.01121,59258.0,59257.0,2.44187167]
[1724107131502,0.07211,59258.0,59257.0,3.86477167]
[1724107131712,0.01021,59258.0,59257.0,3.86477167]
[1724107132337,0.01021,59258.0,59257.0,3.86577167]
[1724107132338,0.00821,59258.0,59257.0,3.86577167]
[1724107132542,0.00821,59258.0,59257.0,3.87077167]
[1724107132747,0.00821,59258.0,59257.0,3.88798167]
[1724107132971,0.00821,59258.0,59257.0,3.96458167]
[1724107133183,0.00821,59258.0,59257.0,4.03598167]
[1724107133805,0.00821,59258.0,59257.0,4.04599145]
[1724107135120,0.00821,59258.0,59257.0,4.03499145]
[1724107135349,0.00821,59258.0,59257.0,4.02099145]
[1724107135542,0.00821,59258.0,59257.0,4.03299145]
[1724107135764,0.00821,59258.0,59257.0,4.04899145]
[1724107135970,0.00821,59258.0,59257.0,4.04699145]
[1724107140192,0.00821,59258.0,59257.0,3.99059145]
[1724107142790,0.00821,59258.0,59257.0,4.00768751]
[1724107148644,0.00821,59258.0,59257.0,2.09257551]
[1724107151918,0.00821,59258.0,59257.0,3.59257551]
[1724107152933,0.15021,59258.0,59257.0,1.33700496]
[1724107153169,0.15021,59258.0,59257.0,1.22679496]
[1724107154197,0.15021,59258.0,59257.0,1.21279496]
[1724107154393,0.15021,59258.0,59257.0,1.22379496]
[1724107154803,0.15021,59258.0,59257.0,1.21279496]
[1724107155025,0.15021,59258.0,59257.0,1.31279496]
[1724107155387,0.15021,59258.0,59257.0,1.30079496]
[1724107155588,0.15021,59258.0,59257.0,1.31079496]
[1724107155719,0.15021,59258.0,59257.0,1.30079496]
[1724107156133,0.15021,59258.0,59257.0,1.30479496]
[1724107158413,0.15021,59258.0,59257.0,0.96687606]
[1724107158589,0.15021,59258.0,59257.0,0.62936406]
[1724107159020,0.15021,59258.0,59257.0,0.96687606]
[1724107159450,0.15021,59258.0,59257.0,0.96328296]
[1724107159823,0.15021,59258.0,59257.0,0.96628296]
[1724107160020,0.15021,59258.0,59257.0,0.62536406]
[1724107160675,0.15021,59258.0,59257.0,0.62636406]
[1724107161086,0.15021,59258.0,59257.0,0.62536406]
[1724107161492,0.318963,59258.0,59257.0,0.01909606]
[1724107161991,0.77354256,59258.0,59257.0,0.01909606]
[1724107162192,1.19572213,59258.0,59257.0,0.01909606]
[1724107162587,0.16877,59252.0,59248.0,0.168781]
[1724107162789,0.1433,59252.0,59250.0,0.168774]
[1724107162995,0.1433,59251.0,59250.0,0.506326]
[1724107163203,0.1433,59251.0,59250.0,0.843878]
[1724107163623,0.1433,59251.0,59250.0,0.8442849]
[1724107164093,0.1433,59251.0,59250.0,0.8452849]
[1724107164239,0.1433,59251.0,59250.0,0.844878]
[1724107164521,0.1433,59251.0,59250.0,0.8452849]
[1724107165090,0.1443,59251.0,59250.0,0.8452849]
[1724107165297,0.1443,59251.0,59250.0,0.8442849]
[1724107165756,0.1463,59251.0,59250.0,0.8442849]
[1724107165989,0.1463,59251.0,59250.0,0.85898693]
[1724107168550,0.1463,59251.0,59250.0,0.52102803]
[1724107169004,0.003,59251.0,59250.0,1.2666288]
[1724107169217,0.003,59251.0,59250.0,2.0421397]
[1724107170052,0.0662,59251.0,59250.0,1.53323893]